fUSD/lending_fUSD_20251224
["ID","MTS","AMOUNT","RATE_DAILY","PERIOD"]
[399656750,1766587839666,-504.50965357,0.00014879,2]
[399656751,1766587839677,-578.20924308,0.00014879,2]
[399656752,1766587839687,-322.6107,0.00014879,2]
[399656753,1766587839697,-500.0,0.00014896,2]
[399656754,1766587839707,-166.66,0.00014962,2]
[399656755,1766587839716,-1634.06,0.00014989,2]
[399656756,1766587839726,-500.0,0.00014999,2]
[399656757,1766587839735,-500.0,0.00014999,2]
[399656758,1766587839745,-166.67,0.00015002,2]
[399656759,1766587839755,-500.0,0.00015003,2]
[399656760,1766587839764,-469.51043734,0.00015003,2]
[399656761,1766587839774,-500.0,0.00015003,2]
[399656762,1766587839784,-17563.00161055,0.00015054,2]
[399656763,1766587839794,-151.0,0.0001513,2]
[399656764,1766587839805,-7294.56490351,0.00015133,2]
[399656765,1766587840023,-263.66662464,0.00015139,2]
[399656768,1766587840061,-500.0,0.0001517,2]
[399656769,1766587840071,-174.83400543,0.00015173,2]
[399656770,1766587840081,-164.80244684,0.00015173,2]
[399656771,1766587840091,-500.0,0.00015173,2]
[399656772,1766587840101,-502.0801392,0.00015173,2]
[399656773,1766587840111,-502.01719743,0.00015173,2]
[399656774,1766587840121,-500.85459949,0.00015173,2]
[399656775,1766587840130,-224.16527175,0.00015173,2]
[399656776,1766587840140,-500.0,0.00015173,2]
[399656777,1766587840150,-500.0,0.00015173,2]
[399656778,1766587840160,-500.0,0.00015173,2]
[399656779,1766587840171,-500.0,0.00015173,2]
[399656780,1766587840181,-500.35332728,0.00015173,2]
[399656781,1766587840191,-501.65480371,0.00015173,2]
[399656782,1766587840200,-500.0,0.00015173,2]
[399656783,1766587840210,-500.0,0.00015173,2]
[399656784,1766587840220,-160.33441349,0.00015173,2]
[399656785,1766587840229,-500.0,0.00015173,2]
[399656786,1766587840239,-500.0,0.00015173,2]
[399656787,1766587840249,-501.23285563,0.00015173,2]
[399656788,1766587840259,-235.78527885,0.00015173,2]
[399656789,1766587840269,-500.0,0.00015173,2]
[399656790,1766587840278,-500.77724877,0.00015173,2]
[399656791,1766587840288,-500.0,0.00015173,2]
[399656792,1766587840297,-162.11626746,0.00015173,2]
[399656793,1766587840307,-500.0,0.00015173,2]
[399656794,1766587840317,-500.0,0.00015173,2]
[399656796,1766587840327,-166.66,0.00015252,2]
[399656797,1766587840337,-1634.06,0.00015263,2]
[399656798,1766587840347,-255.0,0.00015367,2]
[399656799,1766587840357,-1000.0,0.00015419,2]
[399656800,1766587840367,-1000.0,0.00015419,2]
[399656801,1766587840377,-1000.0,0.00015419,2]
[399656802,1766587840387,-339.346,0.00015419,2]
[399656803,1766587840396,-1000.0,0.00015419,2]
[399656804,1766587840406,-187.25641181,0.00015427,2]
[399656805,1766587840416,-165.03611636,0.00015444,2]
[399656806,1766587840426,-17563.00161055,0.00015461,2]
[399656807,1766587840435,-7294.56490351,0.00015529,2]
[399656808,1766587840447,-1634.06,0.00015537,2]
[399656809,1766587840459,-540.26192601,0.00015558,2]
[399656810,1766587840469,-500.0,0.00015577,2]
[399656811,1766587840478,-420.0,0.00015597,2]
[399656812,1766587840488,-420.0,0.00015597,2]
[399656813,1766587840498,-1680.0,0.00015664,2]
[399656814,1766587840507,-300.0,0.00015664,2]
[399656815,1766587840517,-250.0,0.00015664,2]
[399656816,1766587840527,-251.42741313,0.00015664,2]
[399656817,1766587840536,-339.76,0.00015664,2]
[399656818,1766587840546,-600.0,0.00015665,2]
[399656819,1766587840556,-600.0,0.00015666,2]
[399656820,1766587840566,-250.0,0.00015666,2]
[399656821,1766587840576,-195.0,0.00015666,2]
[399656822,1766587840586,-1000.0,0.00015721,2]
[399656823,1766587840595,-1000.0,0.00015721,2]
[399656824,1766587840604,-500.8778337,0.00015721,2]
[399656825,1766587840614,-1000.0,0.00015721,2]
[399656826,1766587840624,-1000.0,0.00015721,2]
[399656827,1766587840633,-1000.0,0.00015721,2]
[399656828,1766587840643,-537.88170422,0.00015721,2]
[399656829,1766587840652,-712.239044,0.00015721,2]
[399656830,1766587840661,-1000.0,0.00015721,2]
[399656831,1766587840671,-1000.0,0.00015721,2]
[399656832,1766587840681,-1000.0,0.00015721,2]
[399656833,1766587840691,-407.75194872,0.00015721,2]
[399656834,1766587840701,-179.64,0.00015721,2]
[399656835,1766587840710,-152.88,0.00015721,2]
[399656836,1766587840720,-297.42797401,0.00015745,2]
[399656837,1766587840730,-384.02629239,0.00015776,2]
[399656838,1766587840739,-300.0,0.00015776,2]
[399656839,1766587840748,-193.0,0.00015776,2]
[399656840,1766587840758,-195.0,0.00015776,2]
[399656841,1766587840768,-195.0,0.00015776,2]
[399656842,1766587840777,-300.0,0.00015776,2]
[399656843,1766587840787,-300.0,0.00015776,2]
[399656845,1766587840797,-166.67,0.00015784,2]
[399656846,1766587840806,-1634.06,0.00015811,2]
[399656847,1766587840816,-17563.00161055,0.00015867,2]
[399656848,1766587840826,-150.0,0.00015918,2]
[399656849,1766587840836,-150.0,0.00015918,2]
[399656850,1766587840847,-7294.56490351,0.00015924,2]
[399656851,1766587840856,-500.0,0.00015999,2]
[399656852,1766587840866,-500.0,0.00015999,2]
[399656853,1766587840875,-171664.01060004,0.00016,2]
[399656854,1766587840885,-263.66662464,0.00016037,2]
[399656855,1766587840895,-1634.06,0.00016085,2]
[399656856,1766587840905,-500.0,0.00016137,2]
[399656857,1766587840915,-500.0,0.00016164,2]
[399656858,1766587840925,-6404.0,0.00016179,2]
[399656859,1766587840935,-287.61899177,0.00016248,2]
[399656860,1766587840946,-323.44007064,0.00016248,2]
[399656861,1766587840956,-543.0,0.00016248,2]
[399656862,1766587840967,-334.5472959,0.00016248,2]
[399656863,1766587840976,-1500.0,0.00016268,2]
[399656864,1766587840987,-1007.00799583,0.00016268,2]
[399656865,1766587840998,-1500.0,0.00016268,2]
[399656866,1766587841009,-1500.0,0.00016268,2]
[399656867,1766587841019,-1500.0,0.00016268,2]
[399656868,1766587841029,-1505.01239591,0.00016268,2]
[399656869,1766587841038,-1000.0,0.00016268,2]
[399656870,1766587841048,-1500.0,0.00016268,2]
[399656871,1766587841060,-17563.00161055,0.00016274,2]
[399656872,1766587841070,-554.17,0.00016301,2]
[399656873,1766587841080,-554.17,0.00016301,2]
[399656874,1766587841090,-554.17,0.00016301,2]
[399656875,1766587841100,-7294.56490351,0.00016319,2]
[399656876,1766587841110,-1634.06,0.00016359,2]
[399656877,1766587841121,-3103.0,0.00016422,2]
[399656878,1766587841131,-500.0,0.00016438,2]
[399656879,1766587841141,-500.0,0.00016438,2]
[399656880,1766587841151,-500.0,0.00016438,2]
[399656881,1766587841161,-500.0,0.00016438,2]
[399656882,1766587841171,-500.0,0.00016438,2]
[399656883,1766587841181,-500.0,0.00016438,2]
[399656884,1766587841191,-500.0,0.00016438,2]
[399656885,1766587841201,-500.0,0.00016438,2]
[399656886,1766587841211,-500.0,0.00016438,2]
[399656887,1766587841221,-307.15311828,0.00016438,2]
[399656888,1766587841232,-500.0,0.00016438,2]
[399656889,1766587841242,-500.0,0.00016438,2]
[399656890,1766587841253,-500.0,0.00016438,2]
[399656891,1766587841263,-500.0,0.00016438,2]
[399656892,1766587841272,-500.0,0.00016438,2]
[399656893,1766587841290,-500.0,0.00016438,2]
[399656894,1766587841300,-500.0,0.00016438,2]
[399656895,1766587841310,-500.0,0.00016438,2]
[399656896,1766587841319,-500.0,0.00016438,2]
[399656897,1766587841330,-500.0,0.00016438,2]
[399656898,1766587841340,-500.0,0.00016438,2]
[399656899,1766587841350,-500.0,0.00016438,2]
[399656900,1766587841359,-500.0,0.00016438,2]
[399656901,1766587841369,-500.0,0.00016438,2]
[399656902,1766587841379,-500.0,0.00016438,2]
[399656903,1766587841388,-500.0,0.00016438,2]
[399656904,1766587841398,-500.0,0.00016438,2]
[399656905,1766587841407,-500.0,0.00016438,2]
[399656906,1766587841417,-500.0,0.00016438,2]
[399656907,1766587841427,-500.0,0.00016438,2]
[399656908,1766587841436,-250.0,0.00016438,2]
[399656909,1766587841448,-14397.82,0.00016438,2]
[399656910,1766587841458,-150.0,0.00016466,2]
[399656911,1766587841468,-150.0,0.00016466,2]
[399656912,1766587841478,-150.0,0.00016466,2]
[399656913,1766587841488,-150.0,0.00016466,2]
[399656914,1766587841497,-150.0,0.00016466,2]
[399656915,1766587841507,-150.0,0.00016466,2]
[399656916,1766587841517,-150.0,0.00016466,2]
[399656917,1766587841528,-150.0,0.00016466,2]
[399656918,1766587841537,-166.67,0.00016566,2]
[399656919,1766587841547,-433.0,0.00016578,2]
[399656920,1766587841557,-3103.0,0.00016601,2]
[399656921,1766587841567,-5888.0,0.00016624,2]
[399656922,1766587841576,-554.17,0.0001663,2]
[399656923,1766587841586,-554.17,0.0001663,2]
[399656924,1766587841595,-1634.06,0.00016633,2]
[399656925,1766587841606,-3103.0,0.0001664,2]
[399656926,1766587841615,-2073.97339154,0.0001666,2]
[399656927,1766587841626,-17563.00161055,0.0001668,2]
[399656928,1766587841635,-150.0,0.00016699,2]
[399656929,1766587841645,-150.0,0.00016699,2]
[399656930,1766587841655,-150.0,0.00016699,2]
[399656931,1766587841665,-204.06937007,0.00016699,2]
[399656932,1766587841674,-250.0,0.00016699,2]
[399656933,1766587841684,-500.0,0.00016699,2]
[399656934,1766587841693,-4532.0,0.000167,2]
[399656935,1766587841703,-4532.0,0.00016702,2]
[399656936,1766587841712,-3103.0,0.00016712,2]
[399656937,1766587841722,-500.0,0.00016713,2]
[399656938,1766587841732,-7294.56490351,0.00016714,2]
[399656939,1766587841741,-4532.0,0.00016722,2]
[399656940,1766587841751,-150.0,0.00016726,2]
[399656941,1766587841761,-150.0,0.00016726,2]
[399656942,1766587841770,-624.0,0.00016726,2]
[399656943,1766587841779,-500.0,0.00016728,2]
[399656944,1766587841789,-500.0,0.00016728,2]
[399656945,1766587841800,-200.0,0.00016754,2]
[399656946,1766587841810,-200.0,0.00016754,2]
[399656947,1766587841819,-617.446,0.00016784,2]
[399656948,1766587841829,-1332.659,0.00016784,2]
[399656949,1766587841838,-1609.0,0.00016784,2]
[399656950,1766587841848,-3459.842,0.00016784,2]
[399656951,1766587841858,-1263.0,0.00016784,2]
[399656952,1766587841867,-433.397,0.00016784,2]
[399656953,1766587841878,-912.0,0.00016784,2]
[399656954,1766587841888,-1198.0,0.00016784,2]
[399656955,1766587841898,-250.0,0.00016784,2]
[399656956,1766587841908,-6533.0,0.00016784,2]
[399656957,1766587841917,-152.0,0.00016784,2]
[399656958,1766587841927,-150.0,0.00016784,2]
[399656959,1766587841936,-2430.0,0.00016784,2]
[399656960,1766587841947,-151.35193963,0.00016807,2]
[399656961,1766587841956,-2000.0,0.00016816,2]
[399656962,1766587841966,-220.50931807,0.00016816,2]
[399656963,1766587841976,-339.47657605,0.00016816,2]
[399656964,1766587841987,-853.92874992,0.00016816,2]
[399656965,1766587841996,-2000.0,0.00016816,2]
[399656966,1766587842007,-770.08786732,0.00016848,2]
[399656967,1766587842017,-200.0,0.00016864,2]
[399656968,1766587842026,-203.59064575,0.00016866,2]
[399656969,1766587842036,-398.40831123,0.00016898,2]
[399656970,1766587842046,-10000.0,0.000169,2]
[399656971,1766587842056,-537.02605009,0.000169,2]
[399656972,1766587842065,-456.58012976,0.000169,2]
[399656973,1766587842076,-685.66043144,0.000169,2]
[399656974,1766587842086,-185.72541202,0.000169,2]
[399656975,1766587842096,-1008.0,0.000169,2]
[399656976,1766587842105,-1634.06,0.00016907,2]
[399656977,1766587842116,-3103.0,0.00016911,2]
[399656978,1766587842126,-554.17,0.00016959,2]
[399656979,1766587842136,-554.17,0.00016959,2]
[399656980,1766587842146,-150.0,0.00016964,2]
[399656981,1766587842156,-150.0,0.00016964,2]
[399656982,1766587842165,-150.0,0.00016964,2]
[399656983,1766587842175,-500.0,0.00016986,2]
[399656984,1766587842184,-500.0,0.00016986,2]
[399656985,1766587842195,-203.24926981,0.00016992,2]
[399656986,1766587842204,-391.41496043,0.00016992,2]
[399656987,1766587842214,-500.0,0.00016992,2]
[399656988,1766587842224,-361.86427728,0.00016992,2]
[399656989,1766587842235,-500.0,0.00016992,2]
[399656990,1766587842246,-3103.0,0.00016992,2]
[399656991,1766587842262,-3103.1619816,0.00016993,2]
[399656992,1766587842273,-846.9063676,0.00016993,2]
[399656993,1766587842283,-180996.1549793,0.00016993,2]
[399656994,1766587842293,-500.0,0.00016997,2]
[399656995,1766587842304,-532.74252407,0.00016997,2]
[399656996,1766587842315,-151.0,0.00016997,2]
[399656997,1766587842325,-268.86752652,0.00016997,2]
[399656998,1766587842336,-86432.499738,0.00016998,2]
[399656999,1766587842345,-7869.3550665,0.00016998,2]
[399657000,1766587842356,-1003.8761,0.00016999,2]
[399657001,1766587842365,-150.0,0.00016999,2]
[399657002,1766587842375,-500.0,0.00016999,2]
[399657003,1766587842385,-500.0,0.00016999,2]
[399657004,1766587842395,-500.0,0.00016999,2]
[399657005,1766587842406,-500.0,0.00016999,2]
[399657006,1766587842416,-500.0,0.00016999,2]
[399657007,1766587842427,-500.0,0.00016999,2]
[399657008,1766587842437,-500.0,0.00016999,2]
[399657009,1766587842447,-500.0,0.00016999,2]
[399657010,1766587842460,-500.0,0.00016999,2]
[399657011,1766587842470,-282.03365894,0.00016999,2]
[399657012,1766587842480,-500.0,0.00016999,2]
[399657013,1766587842491,-449.54,0.00016999,2]
[399657014,1766587842501,-500.0,0.00016999,2]
[399657015,1766587842512,-500.0,0.00016999,2]
[399657016,1766587842522,-500.0,0.00016999,2]
[399657017,1766587842532,-500.0,0.00016999,2]
[399657018,1766587842543,-504.62751647,0.00016999,2]
[399657019,1766587842553,-2032724.7304704,0.00017,2]
[399657028,1766587843439,-1205.72709129,0.00017,2]
[399657029,1766587843454,-262.111729,0.00017,2]
[399657030,1766587843467,-500.0,0.00017,2]
[399657031,1766587843487,-2578.60560507,0.00017,2]
[399657032,1766587843500,-4176.20288896,0.00017,2]
[399657033,1766587843512,-261.29537326,0.00017,2]
[399657034,1766587843526,-101092.23591934,0.00017,2]
[399657035,1766587843542,-1807.19031194,0.00017,2]
[399657036,1766587843555,-10618.21986627,0.00017,2]
[399657037,1766587843567,-7967.72470494,0.00017,2]
[399657038,1766587843579,-15120.03553679,0.00017,2]
[399657039,1766587843591,-16785.15192604,0.00017,2]
[399657040,1766587843603,-2884.10415433,0.00017,2]
[399657041,1766587843615,-6003.3091171,0.00017,2]
[399657042,1766587843631,-11008.38163131,0.00017,2]
[399657043,1766587843830,-1226.0791194,0.00017,2]
[399657044,1766587843842,-1736.33370989,0.00017,2]
[399657045,1766587843855,-14287.24589999,0.00017,2]
[399657046,1766587843876,-1655.35490122,0.00017,2]
[399657047,1766587843888,-4337.20429625,0.00017,2]
[399657066,1766587844667,-1.7e-07,0.00017,2]
[399657067,1766587844680,-3571.52766994,0.00017,2]
[399657068,1766587844691,-5768.68478496,0.00017,2]
[399657069,1766587844704,-438512.56066623,0.00017,2]
[399657070,1766587844715,-3436.000001,0.00017,2]
[399657071,1766587844726,-254.10874608,0.00017,2]
[399657072,1766587844738,-150.0,0.00017,2]
[399657073,1766587844749,-2903.80863836,0.00017,2]
[399657074,1766587844759,-150.0,0.00017,2]
[399657075,1766587844770,-671.20407632,0.00017,2]
[399657076,1766587844780,-150.0,0.00017,2]
[399657077,1766587844790,-18870.63954084,0.00017,2]
[399657078,1766587844800,-250.0,0.00017,2]
[399657079,1766587844811,-587.0,0.00017083,2]
[399657080,1766587844820,-587.0,0.00017083,2]
[399657081,1766587844831,-17563.00161055,0.00017087,2]
[399657082,1766587844841,-1000.0,0.000171,2]
[399657083,1766587844851,-7294.56490351,0.0001711,2]
[399657084,1766587844861,-3103.0,0.00017116,2]
[399657085,1766587844871,-212.0,0.00017156,2]
[399657086,1766587844880,-1634.06,0.00017181,2]
[399657087,1766587844890,-1000.0,0.000172,2]
[399657088,1766587844900,-166.66,0.00017211,2]
[399657089,1766587844911,-12964.9,0.00017225,2]
[399657090,1766587844922,-2351.0,0.0001723,2]
[399657091,1766587844932,-500.0,0.00017233,2]
[399657092,1766587844943,-1004.87064085,0.00017239,2]
[399657093,1766587844954,-3103.0,0.00017272,2]
[399657094,1766587844963,-3103.0,0.00017305,2]
[399657095,1766587844974,-274.0,0.00017321,2]
[399657096,1766587844984,-1000.0,0.00017327,2]
[399657097,1766587844997,-2500.0,0.00017364,2]
[399657098,1766587845008,-2500.0,0.00017364,2]
[399657099,1766587845018,-5888.0,0.00017375,2]
[399657100,1766587845028,-3103.0,0.0001738,2]
[399657101,1766587845039,-300.67071455,0.00017403,2]
[399657102,1766587845049,-4064.58302824,0.00017403,2]
[399657103,1766587845059,-3103.0,0.00017454,2]
[399657104,1766587845069,-1634.06,0.00017455,2]
[399657105,1766587845079,-3103.0,0.00017461,2]
[399657106,1766587845089,-17563.00161055,0.00017493,2]
[399657107,1766587845099,-7294.56490351,0.00017505,2]
[399657108,1766587845109,-3103.0,0.00017515,2]
[399657109,1766587845119,-521.0,0.00017559,2]
[399657110,1766587845129,-298.26089446,0.00017617,2]
[399657111,1766587845139,-543.0,0.00017617,2]
[399657112,1766587845149,-346.92554585,0.00017617,2]
[399657113,1766587845159,-599.60298507,0.00017618,2]
[399657114,1766587845169,-3103.0,0.00017622,2]
[399657115,1766587845179,-303.44161789,0.00017686,2]
[399657116,1766587845189,-166.66,0.00017713,2]
[399657117,1766587845199,-1634.06,0.00017729,2]
[399657118,1766587845209,-521.0,0.00017738,2]
[399657119,1766587845219,-151.35193963,0.00017741,2]
[399657120,1766587845230,-500.0,0.00017808,2]
[399657121,1766587845242,-500.0,0.00017835,2]
[399657122,1766587845251,-155.59167587,0.00017863,2]
[399657123,1766587845261,-521.0,0.00017865,2]
[399657124,1766587845271,-3103.0,0.00017878,2]
[399657125,1766587845281,-736.0,0.00017888,2]
[399657126,1766587845291,-500.00387024,0.000179,5]
[399657127,1766587845301,-1000.0,0.000179,2]
[399657128,1766587845312,-500.0,0.000179,2]
[399657129,1766587845322,-500.0,0.000179,2]
[399657130,1766587845332,-500.0,0.000179,2]
[399657131,1766587845342,-500.0,0.000179,2]
[399657132,1766587845352,-500.0,0.000179,2]
[399657133,1766587845362,-500.0,0.000179,2]
[399657134,1766587845371,-883.0,0.000179,2]
[399657135,1766587845381,-500.0,0.000179,2]
[399657136,1766587845391,-500.0,0.000179,2]
[399657137,1766587845400,-500.0,0.000179,2]
[399657138,1766587845410,-500.0,0.000179,2]
[399657139,1766587845420,-500.0,0.000179,2]
[399657140,1766587845430,-500.0,0.000179,2]
[399657141,1766587845440,-500.0,0.000179,2]
[399657142,1766587845454,-500.0,0.000179,2]
[399657143,1766587845464,-500.0,0.000179,2]
[399657144,1766587845474,-500.0,0.000179,2]
[399657145,1766587845484,-500.0,0.000179,2]
[399657146,1766587845495,-500.0,0.000179,2]
[399657147,1766587845505,-500.0,0.000179,2]
[399657148,1766587845514,-500.0,0.000179,2]
[399657149,1766587845526,-500.0,0.000179,2]
[399657150,1766587845536,-500.0,0.000179,2]
[399657151,1766587845545,-500.0,0.000179,2]
[399657152,1766587845555,-500.0,0.000179,2]
[399657153,1766587845664,-500.0,0.000179,2]
[399657154,1766587845674,-500.0,0.000179,2]
[399657155,1766587845683,-500.0,0.000179,2]
[399657156,1766587845693,-500.0,0.000179,2]
[399657157,1766587845703,-500.0,0.000179,2]
[399657158,1766587845712,-500.0,0.000179,2]
[399657159,1766587845721,-500.0,0.000179,2]
[399657160,1766587845731,-500.0,0.000179,2]
[399657161,1766587845740,-500.0,0.000179,2]
[399657162,1766587845750,-500.0,0.000179,2]
[399657163,1766587845760,-500.0,0.000179,2]
[399657164,1766587845769,-500.0,0.000179,2]
[399657165,1766587845779,-500.0,0.000179,2]
[399657166,1766587845788,-500.0,0.000179,2]
[399657167,1766587845797,-500.0,0.000179,2]
[399657168,1766587845807,-500.0,0.000179,2]
[399657169,1766587845817,-500.0,0.000179,2]
[399657170,1766587845826,-500.0,0.000179,2]
[399657171,1766587845836,-500.0,0.000179,2]
[399657172,1766587845846,-500.0,0.000179,2]
[399657173,1766587845855,-500.0,0.000179,2]
[399657174,1766587845864,-500.0,0.000179,2]
[399657175,1766587845874,-500.0,0.000179,2]
[399657176,1766587845883,-500.0,0.000179,2]
[399657177,1766587845893,-500.0,0.000179,2]
[399657178,1766587845903,-500.0,0.000179,2]
[399657179,1766587845913,-500.0,0.000179,2]
[399657180,1766587845922,-500.0,0.000179,2]
[399657181,1766587845932,-500.0,0.000179,2]
[399657182,1766587845943,-500.0,0.000179,2]
[399657183,1766587845953,-500.0,0.000179,2]
[399657184,1766587845963,-500.0,0.000179,2]
[399657185,1766587845972,-500.0,0.000179,2]
[399657186,1766587845982,-500.0,0.000179,2]
[399657187,1766587845994,-500.0,0.000179,2]
[399657188,1766587846006,-500.0,0.000179,2]
[399657189,1766587846016,-500.0,0.000179,2]
[399657190,1766587846026,-500.0,0.000179,2]
[399657191,1766587846036,-500.0,0.000179,2]
[399657192,1766587846045,-500.0,0.000179,2]
[399657193,1766587846056,-500.0,0.000179,2]
[399657194,1766587846066,-500.0,0.000179,2]
[399657195,1766587846076,-500.0,0.000179,2]
[399657196,1766587846085,-500.0,0.000179,2]
[399657197,1766587846095,-500.0,0.000179,2]
[399657198,1766587846105,-500.0,0.000179,2]
[399657199,1766587846115,-500.0,0.000179,2]
[399657201,1766587846125,-500.0,0.000179,2]
[399657202,1766587846135,-500.0,0.000179,2]
[399657203,1766587846144,-500.0,0.000179,2]
[399657205,1766587846154,-500.0,0.000179,2]
[399657207,1766587846164,-500.0,0.000179,2]
[399657209,1766587846174,-500.0,0.000179,2]
[399657211,1766587846183,-500.0,0.000179,2]
[399657213,1766587846193,-500.0,0.000179,2]
[399657215,1766587846203,-500.0,0.000179,2]
[399657217,1766587846212,-500.0,0.000179,2]
[399657219,1766587846223,-500.0,0.000179,2]
[399657221,1766587846233,-500.0,0.000179,2]
[399657223,1766587846243,-500.0,0.000179,2]
[399657225,1766587846252,-647.0,0.000179,2]
[399657227,1766587846262,-500.0,0.000179,2]
[399657229,1766587846272,-500.0,0.000179,2]
[399657231,1766587846281,-500.0,0.000179,2]
[399657233,1766587846291,-500.0,0.000179,2]
[399657235,1766587846300,-500.0,0.000179,2]
[399657237,1766587846309,-500.0,0.000179,2]
[399657239,1766587846319,-500.0,0.000179,2]
[399657241,1766587846329,-500.0,0.000179,2]
[399657243,1766587846339,-500.0,0.000179,2]
[399657245,1766587846348,-500.0,0.000179,2]
[399657247,1766587846357,-500.0,0.000179,2]
[399657248,1766587846367,-500.0,0.000179,2]
[399657250,1766587846376,-500.0,0.000179,2]
[399657251,1766587846386,-500.0,0.000179,2]
[399657252,1766587846395,-500.0,0.000179,2]
[399657253,1766587846404,-500.0,0.000179,2]
[399657254,1766587846413,-500.0,0.000179,2]
[399657255,1766587846422,-500.0,0.000179,2]
[399657256,1766587846433,-500.0,0.000179,2]
[399657257,1766587846442,-500.0,0.000179,2]
[399657258,1766587846453,-500.0,0.000179,2]
[399657259,1766587846463,-500.0,0.000179,2]
[399657260,1766587846473,-500.0,0.000179,2]
[399657261,1766587846483,-500.0,0.000179,2]
[399657262,1766587846494,-500.0,0.000179,2]
[399657263,1766587846505,-500.0,0.000179,2]
[399657264,1766587846516,-500.0,0.000179,2]
[399657265,1766587846526,-500.0,0.000179,2]
[399657266,1766587846535,-500.0,0.000179,2]
[399657267,1766587846544,-500.0,0.000179,2]
[399657268,1766587846553,-500.0,0.000179,2]
[399657269,1766587846563,-500.0,0.000179,2]
[399657270,1766587846573,-500.0,0.000179,2]
[399657271,1766587846583,-500.0,0.000179,2]
[399657272,1766587846593,-500.0,0.000179,2]
[399657273,1766587846602,-500.0,0.000179,2]
[399657274,1766587846612,-500.0,0.000179,2]
[399657275,1766587846621,-500.0,0.000179,2]
[399657276,1766587846631,-500.0,0.000179,2]
[399657277,1766587846640,-500.0,0.000179,2]
[399657278,1766587846650,-500.0,0.000179,2]
[399657279,1766587846659,-500.0,0.000179,2]
[399657280,1766587846670,-500.0,0.000179,2]
[399657281,1766587846679,-500.0,0.000179,2]
[399657282,1766587846688,-500.0,0.000179,2]
[399657283,1766587846697,-500.0,0.000179,2]
[399657284,1766587846707,-500.0,0.000179,2]
[399657285,1766587846717,-500.0,0.000179,2]
[399657286,1766587846726,-500.0,0.000179,2]
[399657287,1766587846736,-500.0,0.000179,2]
[399657288,1766587846747,-500.0,0.000179,2]
[399657289,1766587846756,-500.0,0.000179,2]
[399657290,1766587846766,-500.0,0.000179,2]
[399657292,1766587846776,-500.0,0.000179,2]
[399657294,1766587846785,-500.0,0.000179,2]
[399657296,1766587846794,-500.0,0.000179,2]
[399657298,1766587846803,-500.0,0.000179,2]
[399657300,1766587846818,-500.0,0.000179,2]
[399657302,1766587846827,-500.0,0.000179,2]
[399657304,1766587846838,-500.0,0.000179,2]
[399657306,1766587846848,-500.0,0.000179,2]
[399657307,1766587846858,-500.0,0.000179,2]
[399657308,1766587846867,-500.0,0.000179,2]
[399657309,1766587846877,-500.0,0.000179,2]
[399657310,1766587846887,-500.0,0.000179,2]
[399657311,1766587846897,-500.0,0.000179,2]